Cogmind - Beta 13 @@@ ROGUE MODE // 2024.04.24 @ 17:23:55 Player: Kinga Result: Self-destructed Performance ------------- Evolutions (6) 3000 Regions Visited (10) 2000 Robots Destroyed (94) 470 Value Destroyed (3086) 3086 Prototype IDs (19) 380 Alien Tech Used (0) 0 Bonus (1103) 1103 TOTAL SCORE: 10039 Bonus ------- High Alert Combat Kills 132 Follower Combat Kills 725 Met Imprinter 300 Was Imprinted 300 Friendly Fire -354 Cogmind --------- Core Integrity 1130/1150 Matter 280/300 Energy 885/885 System Corruption 0% Temperature Cool (0) Movement Treading (240) Ox1 Location -4/Factory Parts ------- > --- POWER (2) -------- Fission Core Antimatter Reactor > --- PROPULSION (4) --- Improved Heavy Treads Improved Heavy Treads > --- UTILITY (9) ------ Improved Cooling System Huge Storage Unit Energy Well Active Sensor Suite Precision Energy Filter Reflective Plating Improved Shield Generator > --- WEAPON (4) ------- Improved Lightning Gun Improved Lightning Gun Dispersion Rifle Heavy Wave Gun > --- INVENTORY (25) --- Light Nuclear Core Improved Heavy Treads Improved Heavy Treads Compact Wheel Compact Wheel Power Amplifier Advanced Power Amplifier Improved Heat Sink Improved Heat Sink Improved Heat Sink Advanced Cooling System Improved Coolant Injector Energy Well (350) Matter Compressor (250) Energy Filter Makeshift Laser Beamcaster Variable Charge Gun Dispersion Rifle Plasma Cannon Matter Neutralizer Rocket Launcher Mini Grenade Launcher Peak State ------------ > --- POWER ------------ Fission Core Antimatter Reactor > --- PROPULSION ------- Improved Heavy Treads Improved Heavy Treads > --- UTILITY ---------- Improved Cooling System Huge Storage Unit Energy Well Active Sensor Suite Precision Energy Filter Reflective Plating Improved Shield Generator > --- WEAPON ----------- Improved Lightning Gun Improved Lightning Gun Dispersion Rifle Heavy Wave Gun > --- INVENTORY -------- Light Nuclear Core Improved Heavy Treads Improved Heavy Treads Compact Wheel Compact Wheel Power Amplifier Advanced Power Amplifier Improved Heat Sink Improved Heat Sink Improved Heat Sink Advanced Cooling System Improved Coolant Injector Energy Well Matter Compressor Energy Filter Makeshift Laser Beamcaster Variable Charge Gun Dispersion Rifle Plasma Cannon Matter Neutralizer Rocket Launcher Mini Grenade Launcher [Rating: 129] Favorites ----------- Power Heavy Ion Engine Engine Heavy Ion Engine Power Core Fission Core Reactor Antimatter Reactor Propulsion Improved Treads Treads Improved Treads Wheel Compact Wheel Utility Improved Heat Sink Device Improved Heat Sink Storage Huge Storage Unit Protection Hardened Heavy Armor Plating Weapon Improved Medium Laser Energy Gun Improved Medium Laser Energy Cannon Advanced Beam Cannon Ballistic Gun Improved Assault Rifle Launcher Mini Grenade Launcher Special Weapon RU-N14's Throwing Claymores Build | -11 -10 -9 -8 -7 -7 -7 -6 -6 -5 -4 ------- Run | Yrd Mat Mat Mat Fac Low Zio Pro Fac Fac Fac Slots Evolved 12 | . . 2 2 2 . . . 2 2 2 Power 1 | . . . . . . . . . . 1 Propulsion 2 | . . . . 1 . . . . 1 . Utility 7 | . . 1 2 1 . . . 1 1 1 Weapon 2 | . . 1 . . . . . 1 . . Parts Attached 94 | 5 5 13 17 9 . 4 2 3 29 7 Power 10 | 1 . 1 3 . . . 1 1 2 1 Engine 4 | 1 . 1 2 . . . . . . . Core 5 | . . . 1 . . . 1 1 1 1 Reactor 1 | . . . . . . . . . 1 . Propulsion 20 | 2 . 2 5 3 . . . . 6 2 Treads 18 | 2 . 2 5 3 . . . . 4 2 Leg . | . . . . . . . . . . . Wheel 2 | . . . . . . . . . 2 . Hover . | . . . . . . . . . . . Flight . | . . . . . . . . . . . Utility 35 | . 4 2 6 4 . 1 1 1 14 2 Device 24 | . 1 2 4 3 . 1 1 . 10 2 Storage 4 | . 3 . . . . . . . 1 . Processor . | . . . . . . . . . . . Hackware . | . . . . . . . . . . . Protection 7 | . . . 2 1 . . . 1 3 . Artifact . | . . . . . . . . . . . Weapon 29 | 2 1 8 3 2 . 3 . 1 7 2 Energy Gun 17 | . . 5 2 1 . 1 . 1 5 2 Energy Cannon 3 | . 1 . . . . 1 . . 1 . Ballistic Gun 7 | 2 . 3 1 1 . . . . . . Ballistic Cannon . | . . . . . . . . . . . Launcher 1 | . . . . . . . . . 1 . Special Weapon 1 | . . . . . . 1 . . . . Impact Weapon . | . . . . . . . . . . . Slashing Weapon . | . . . . . . . . . . . Piercing Weapon . | . . . . . . . . . . . Special Melee Weapon . | . . . . . . . . . . . Unidentified Prototypes 11 | . . 3 . 1 . 2 . 1 1 3 Parts Lost 21 | . . 5 5 1 . . . . 10 . Power 1 | . . . 1 . . . . . . . Propulsion 7 | . . 2 1 . . . . . 4 . Utility 7 | . . 1 1 . . . . . 5 . Weapon 6 | . . 2 2 1 . . . . 1 . Highest Loss Streak 5 | . . 1 5 1 . . . . 5 . To Critical Strikes 2 | . . 1 . 1 . . . . . . Average Slot Usage (%) 87 | . 93 92 98 91 92 92 92 72 82 83 Engine 4 | . 14 10 6 7 7 7 2 . . . Core 2 | . . . 2 . . . 4 6 3 5 Treads 21 | . 28 22 18 23 23 23 23 20 20 10 Device 17 | . 8 17 26 21 15 15 15 13 24 21 Storage 7 | . 13 11 9 7 7 7 7 6 6 10 Protection 12 | . . . 8 8 15 15 15 19 12 5 Energy Gun 14 | . . 10 25 20 23 16 15 6 7 21 Energy Cannon 2 | . 7 3 . . . 5 7 . . . Ballistic Gun 2 | . 20 17 1 2 . . . . . . Naked Turns . | . . . . . . . . . . . Heaviest Build 158 | 6 89 99 119 139 138 140 140 155 158 151 Greatest Support 150 | 40 40 43 43 66 66 66 66 66 86 150 Greatest Overweight (x) 8 | . 2 2 2 2 2 2 2 2 8 4 Average Overweight (x) 1 | . . 2 2 1 2 2 2 2 1 1 Largest Inventory Capacity 25 | 5 25 25 25 25 25 25 25 25 25 25 Average Capacity 24 | 5 14 25 25 25 25 25 25 25 25 25 Most Carried 25 | 5 6 20 24 25 24 25 25 25 25 25 Average Carried 21 | 2 5 11 18 22 24 24 24 24 22 22 Final Capacity 25 | 5 25 25 25 25 25 25 25 25 25 25 Final Carried 25 | 5 6 20 23 24 24 25 25 25 21 25 Class Distribution -------------------- 66% | Scavenger-Tank 12% | Tank 8% | Skirmisher 5% | Mutant 4% | Scavenger-Gunner Dominant Class ---------------- Mutant | -10/Materials Skirmisher | -9/Materials Tank | -8/Materials Scavenger-Gunner | -7/Factory Scavenger-Tank | -7/Lower Caves Scavenger-Tank | -7/Zion Scavenger-Tank | -6/Proximity Caves Scavenger-Tank | -6/Factory Tank | -5/Factory Scavenger-Skirmisher | -4/Factory Resources | -11 -10 -9 -8 -7 -7 -7 -6 -6 -5 -4 ----------- Run | Yrd Mat Mat Mat Fac Low Zio Pro Fac Fac Fac Matter Collected 1834 | 213 112 439 157 20 7 128 368 47 283 60 Remotely . | . . . . . . . . . . . Salvage Created 3944 | . 133 1105 716 572 . . . 270 1045 103 Parts 206 | . 9 79 32 19 . . . 12 52 3 Haulers Intercepted 5 | . 1 3 . 1 . . . . . . Recyclers Shooed 5 | . . 1 . 1 . . . . 1 2 Parts Field Recycled . | . . . . . . . . . . . Retrieved Matter . | . . . . . . . . . . . Parts Self-Destructed 7 | . . . . . . . 7 . . . Prevented 4 | . . . . . . 1 3 . . . Kills | -11 -10 -9 -8 -7 -7 -7 -6 -6 -5 -4 ------- Run | Yrd Mat Mat Mat Fac Low Zio Pro Fac Fac Fac Combat Hostiles Destroyed 73 | . 2 23 14 10 . . . 4 19 1 Guns 58 | . . 19 13 10 . . . 4 12 . Cannons 7 | . 2 4 . . . . . . 1 . AOE 5 | . . . . . . . . . 5 . Classes Destroyed 18 | . 3 7 4 . . . . 1 3 . Worker 2 | . . 2 . . . . . . . . Tunneler 1 | . . 1 . . . . . . . . Hauler 5 | . 1 3 . 1 . . . . . . Recycler 6 | . . 2 . 2 . . . . 2 . Mechanic 1 | . . . . . . . . . 1 . Operator 1 | . 1 . . . . . . . . . Watcher 4 | . . 3 . . . . . . . 1 Swarmer 25 | . . 10 . 7 . . . . 8 . Grunt 24 | . 2 9 7 1 . . . 1 4 . Brawler 1 | . . . 1 . . . . . . . Duelist 3 | . . 1 . . . . . . 2 . Protector 1 | . . . . . . . . . 1 . Sentry 10 | . . 3 2 2 . . . 1 1 1 Specialist 2 | . . . 2 . . . . . . . Hunter 1 | . . . 1 . . . . . . . Programmer 4 | . . . . . . . . 2 2 . Heavy 1 | . . . 1 . . . . . . . Wizard 1 | . . . . . . . . 1 . . Fireman 1 | . . . . . . . . . 1 . Best Kill Streak 10 | . 3 10 6 5 . . . 1 6 1 Combat Bots Only 6 | . 2 5 6 4 . . . 1 5 1 Max Kills in Single Turn 3 | . 1 2 2 2 . . . 1 3 1 Gunslinging 1 | . . 1 1 1 . . . . . . Exploded 3 | . . . . . . . . . 3 . Melee . | . . . . . . . . . . . Uniques/NPCs Destroyed . | . . . . . . . . . . . Combat | -11 -10 -9 -8 -7 -7 -7 -6 -6 -5 -4 -------- Run | Yrd Mat Mat Mat Fac Low Zio Pro Fac Fac Fac Hostile Shots Fired 555 | . 13 126 87 102 . 8 18 41 156 4 Missed 155 | . 7 34 24 43 . 2 7 15 22 1 Damage Taken 5323 | . 103 995 1021 512 . 111 84 246 2198 53 Core 574 | . 23 129 141 33 . . 22 28 178 20 Absorbed by Shields 197 | . . . . . . . . . 178 19 Ignored by Resistances 526 | . . . . 103 . 42 14 68 296 3 Core Remaining (%) 85 | 100 90 67 74 . . . 92 96 82 . Volleys Fired 197 | . 11 72 35 27 . 3 2 13 29 5 Largest 4 | . 2 3 3 3 . 3 3 1 4 4 Hottest 268 | . 80 168 168 168 . 180 180 250 260 268 Shots Fired 490 | . 19 203 101 81 . 9 6 13 38 20 Gun 446 | . 9 181 101 81 . 6 4 13 31 20 Cannon 40 | . 10 22 . . . 3 2 . 3 . Launcher 4 | . . . . . . . . . 4 . Special . | . . . . . . . . . . . Kinetic 161 | . 9 133 2 17 . . . . . . Thermal 301 | . 10 70 99 64 . 9 6 13 25 5 Explosive 4 | . . . . . . . . . 4 . Electromagnetic 24 | . . . . . . . . . 9 15 Robot Hit Streak 16 | . 3 9 14 15 . 16 2 4 10 6 Robot Miss Streak 15 | . 2 5 3 2 . 5 9 15 7 3 Penetration Max . | . . . . . . . . . . . Secondary Targets 11 | . . 2 6 3 . . . . . . Max Gunslinging Chain 2 | . . 1 2 1 . . . . . . Shots Hit Robots 294 | . 8 108 68 57 . 1 2 11 28 11 Core Hits 189 | . 4 47 30 23 . . 3 16 61 5 Critical Kills . | . . . . . . . . . . . Critical Parts Destroyed . | . . . . . . . . . . . Critical Strikes 9 | . . 3 5 1 . . . . . . Burn 9 | . . 3 5 1 . . . . . . Melee Attacks . | . . . . . . . . . . . Impact . | . . . . . . . . . . . Slashing . | . . . . . . . . . . . Piercing . | . . . . . . . . . . . Sneak Attacks . | . . . . . . . . . . . Combat Hostiles . | . . . . . . . . . . . Follow-up Attacks . | . . . . . . . . . . . Damage Inflicted 8558 | . 130 1641 1157 1028 . 18 73 976 2990 545 Guns 7572 | . 44 1484 1157 1028 . 18 52 975 2464 350 Cannons 314 | . 86 157 . . . . 21 . 50 . Explosions 655 | . . . . . . . . . 460 195 Melee . | . . . . . . . . . . . Ramming 17 | . . . . . . . . 1 16 . Kinetic 1193 | . 44 934 28 187 . . . . . . Thermal 6478 | . 86 707 1129 841 . 18 73 975 2346 303 Explosive 460 | . . . . . . . . . 460 . Electromagnetic 410 | . . . . . . . . . 168 242 Impact . | . . . . . . . . . . . Slashing . | . . . . . . . . . . . Piercing . | . . . . . . . . . . . Highest Corruption 6 | . . . 4 . . . . 1 6 . Average Corruption 3 | . . . 3 . . . . 1 5 . Corruption Purged . | . . . . . . . . . . . Corruption Blocked 8 | . . . . . . . . 8 . . Effects 26 | . . . 14 . . . . 5 7 . Message Errors 8 | . . . 6 . . . . 1 1 . Matter Fused 4 | . . . 1 . . . . 2 1 . Heat Flow Errors 1 | . . . . . . . . . 1 . Energy Discharges 5 | . . . 2 . . . . 1 2 . Parts Rejected 1 | . . . 1 . . . . . . . Data Loss (minor) 2 | . . . 2 . . . . . . . Data Loss (major) 1 | . . . . . . . . . 1 . Misfires 1 | . . . 1 . . . . . . . Alerts 2 | . . . . . . . . 1 1 . Weapon Failures 1 | . . . 1 . . . . . . . Overload Shots . | . . . . . . . . . . . Overflow Damage 32 | . . . . . . . . . 26 6 Projectiles . | . . . . . . . . . . . Explosions 32 | . . . . . . . . . 26 6 Melee . | . . . . . . . . . . . Knockbacks . | . . . . . . . . . . . Impact . | . . . . . . . . . . . Kinetic . | . . . . . . . . . . . Secondary . | . . . . . . . . . . . Self-Inflicted Damage . | . . . . . . . . . . . Shots . | . . . . . . . . . . . Rammed 3 | . . . . . . . . 1 2 . Targets Rammed 3 | . . . . . . . . 1 2 . Kicked . | . . . . . . . . . . . Crushed . | . . . . . . . . . . . Highest Temperature 344 | . 72 250 222 195 . 73 60 232 344 276 Average Temperature 94 | . 34 85 114 85 . 38 33 92 116 127 Received Heat Transfer 1188 | . 36 276 351 81 . . 24 48 366 6 Effects 6 | . . 3 . . . . . . 2 1 Energy Bleed 1 | . . . . . . . . . . 1 Interference 5 | . . 3 . . . . . . 2 . Siege Activations . | . . . . . . . . . . . Robots Corrupted 1 | . . . . . . . . . . 1 Combat Hostiles 1 | . . . . . . . . . . 1 Parts Fried . | . . . . . . . . . . . Impact Corruptions 1 | . . . . . . . . . 1 . Robots Melted 2 | . . . 1 . . . . . 1 . Combat Hostiles 2 | . . . 1 . . . . . 1 . Parts Melted 35 | . . 3 13 5 . . . 8 6 . Heat Transferred 11485 | . 185 1765 2812 1776 . 37 148 1325 3139 298 Parts Sabotaged . | . . . . . . . . . . . Parts Stolen . | . . . . . . . . . . . Parts Stripped . | . . . . . . . . . . . Power Chain Reactions 1 | . . . . . . . . . . 1 Alert | -11 -10 -9 -8 -7 -7 -7 -6 -6 -5 -4 ------- Run | Yrd Mat Mat Mat Fac Low Zio Pro Fac Fac Fac Peak Influence 543 | . 67 489 322 290 . . . 334 543 470 Initial 192 | . . 27 159 146 . . . 17 70 192 Average 192 | . 20 259 199 161 . . . 127 296 405 Maximum Alert Level 2 | . . 2 1 1 . . . 1 2 2 Low Security (%) 60 | 100 100 33 62 75 . . . 80 25 9 Level 1 29 | . . 51 37 24 . . . 19 48 8 Level 2 10 | . . 14 . . . . . . 25 81 Level 3 . | . . . . . . . . . . . Level 4 . | . . . . . . . . . . . Level 5 . | . . . . . . . . . . . High Security . | . . . . . . . . . . . Max Security . | . . . . . . . . . . . Squads Dispatched 18 | . . . 4 1 . . . 7 6 . Investigation 3 | . . . . 1 . . . 1 1 . Extermination 5 | . . . . . . . . 4 1 . Reinforcement 6 | . . . 4 . . . . 2 . . Assault 1 | . . . . . . . . . 1 . Garrison 3 | . . . . . . . . . 3 . Intercept . | . . . . . . . . . . . Searches Triggered . | . . . . . . . . . . . Construction Impeded . | . . . . . . . . . . . Haulers Reinforced . | . . . . . . . . . . . Active Scanning Responses . | . . . . . . . . . . . Cargo Convoy Interrupts . | . . . . . . . . . . . Stealth | -11 -10 -9 -8 -7 -7 -7 -6 -6 -5 -4 --------- Run | Yrd Mat Mat Mat Fac Low Zio Pro Fac Fac Fac Distress Signals 7 | . . 5 . 1 . . . . 1 . Communications Jammed 1 | . . . . . . . . . 1 . Distress Signals 1 | . . . . . . . . . 1 . Times Spotted 130 | . 4 36 18 18 . 1 4 17 31 1 Peak Tracking Total 7 | . 2 7 4 5 . 1 3 5 6 1 Tactical Retreats 9 | . . 5 . 1 . . . 1 2 . Traps | -11 -10 -9 -8 -7 -7 -7 -6 -6 -5 -4 ------- Run | Yrd Mat Mat Mat Fac Low Zio Pro Fac Fac Fac Traps Triggered 6 | . 1 . 3 . . . . . 2 . Indirectly . | . . . . . . . . . . . Trap Hack Attempts . | . . . . . . . . . . . Triggered . | . . . . . . . . . . . Disarmed . | . . . . . . . . . . . Reprogrammed . | . . . . . . . . . . . Reused . | . . . . . . . . . . . Traps Extracted . | . . . . . . . . . . . Installed . | . . . . . . . . . . . Triggered . | . . . . . . . . . . . Machines | -11 -10 -9 -8 -7 -7 -7 -6 -6 -5 -4 ---------- Run | Yrd Mat Mat Mat Fac Low Zio Pro Fac Fac Fac Machines Disabled 5 | . . . . . . . . 5 . . Max in Single Turn . | . . . . . . . . . . . Garrison Access 1 | . . . . . . . . . . 1 Machines Repaired . | . . . . . . . . . . . Machines Dismantled . | . . . . . . . . . . . Machines Sabotaged . | . . . . . . . . . . . Overloaded Fab Kills . | . . . . . . . . . . . Hacking | -11 -10 -9 -8 -7 -7 -7 -6 -6 -5 -4 --------- Run | Yrd Mat Mat Mat Fac Low Zio Pro Fac Fac Fac Machines Accessed 14 | . 2 2 5 4 . . . . . 1 Terminals 11 | . 2 2 5 2 . . . . . . Fabricators 2 | . . . . 2 . . . . . . Repair Stations . | . . . . . . . . . . . Recycling Units . | . . . . . . . . . . . Scanalyzers . | . . . . . . . . . . . Garrison Access 1 | . . . . . . . . . . 1 Total Hacks 30 | . 3 4 14 7 . . . . . 2 Successful 13 | . 3 2 4 3 . . . . . 1 Failed 17 | . . 2 10 4 . . . . . 1 Catastrophic 3 | . . . . 2 . . . . . 1 Database Lockouts . | . . . . . . . . . . . Manual 11 | . . . 2 . . . . 5 2 2 Terminals 25 | . 3 4 14 4 . . . . . . Fabricators 3 | . . . . 3 . . . . . . Repair Stations . | . . . . . . . . . . . Recycling Units . | . . . . . . . . . . . Scanalyzers . | . . . . . . . . . . . Garrison Access 2 | . . . . . . . . . . 2 Terminal Hacks 11 | . 3 2 4 2 . . . . . . Prototype ID Bank 4 | . 1 1 2 . . . . . . . Level Access Points 1 | . 1 . . . . . . . . . Alert Level 1 | . . . . 1 . . . . . . Hauler Manifests 3 | . 1 . 1 1 . . . . . . Registered Components 2 | . . 1 1 . . . . . . . Fabricator Hacks 1 | . . . . 1 . . . . . . Network Status 1 | . . . . 1 . . . . . . Repair Station Hacks . | . . . . . . . . . . . Recycling Unit Hacks . | . . . . . . . . . . . Scanalyzer . | . . . . . . . . . . . Garrison Access Hacks 1 | . . . . . . . . . . 1 Seal Access 1 | . . . . . . . . . . 1 Unauthorized Hacks . | . . . . . . . . . . . Terminals . | . . . . . . . . . . . Fabricators . | . . . . . . . . . . . Repair Stations . | . . . . . . . . . . . Recycling Units . | . . . . . . . . . . . Scanalyzers . | . . . . . . . . . . . Garrison Access . | . . . . . . . . . . . Data Cores Recovered 1 | . 1 . . . . . . . . . Used . | . . . . . . . . . . . Hacking Detections 12 | . 2 2 5 3 . . . . . . Full Trace Events 2 | . . . 1 1 . . . . . . Feedback Events . | . . . . . . . . . . . Feedback Blocked . | . . . . . . . . . . . Robot Schematics Acquired 4 | . . . . . . 4 . . . . Robots Built . | . . . . . . . . . . . Authchips . | . . . . . . . . . . . Time . | . . . . . . . . . . . Total Robot Build Rating . | . . . . . . . . . . . Part Schematics Acquired 14 | . . . . . . 14 . . . . Parts Built . | . . . . . . . . . . . Authchips . | . . . . . . . . . . . Time . | . . . . . . . . . . . Total Part Build Rating . | . . . . . . . . . . . Parts Repaired . | . . . . . . . . . . . Time . | . . . . . . . . . . . Parts Recycled . | . . . . . . . . . . . Recycled Matter . | . . . . . . . . . . . Retrieved Matter . | . . . . . . . . . . . Retrieved Components . | . . . . . . . . . . . Parts Scanalyzed . | . . . . . . . . . . . Part Schematics Acquired . | . . . . . . . . . . . Parts Damaged . | . . . . . . . . . . . Bothacking | -11 -10 -9 -8 -7 -7 -7 -6 -6 -5 -4 ------------ Run | Yrd Mat Mat Mat Fac Low Zio Pro Fac Fac Fac Used RIF Installer . | . . . . . . . . . . . Robots Hacked . | . . . . . . . . . . . Non-combat . | . . . . . . . . . . . Combat . | . . . . . . . . . . . Robot Hacks Applied . | . . . . . . . . . . . Relay Couplers Released . | . . . . . . . . . . . Fabnet Peak Effective % . | . . . . . . . . . . . Robots Rewired . | . . . . . . . . . . . Allies Hacked . | . . . . . . . . . . . Hacks Repelled . | . . . . . . . . . . . Allies | -11 -10 -9 -8 -7 -7 -7 -6 -6 -5 -4 -------- Run | Yrd Mat Mat Mat Fac Low Zio Pro Fac Fac Fac Total Allies 11 | . . . . . . 4 . 2 4 1 Largest Group 5 | . . . . . . 4 4 5 4 1 Highest-Rated Group 217 | . . . . . . 155 155 217 112 32 Highest-Rated Ally 51 | . . . . . . 40 40 51 28 32 Zionite Dispatches 3 | . . . . . . . . 1 1 1 Fire 1 | . . . . . . . . . 1 . Hacker 1 | . . . . . . . . 1 . . Thermal Resupply 1 | . . . . . . . . . . 1 Total Orders 1 | . . . . . . . . . . 1 DROP 1 | . . . . . . . . . . 1 Ally Attacks 115 | . . . . . . 7 14 62 32 . Total Damage 2596 | . . . . . . 194 239 1650 513 . Kills 28 | . . . . . . 1 4 14 9 . Allies Corrupted . | . . . . . . . . . . . Allies Melted . | . . . . . . . . . . . Intel | -11 -10 -9 -8 -7 -7 -7 -6 -6 -5 -4 ------- Run | Yrd Mat Mat Mat Fac Low Zio Pro Fac Fac Fac Robot Analysis Total . | . . . . . . . . . . . Derelict Logs Recovered 2 | . . . . . . . 2 . . . Drone Launches . | . . . . . . . . . . . Drone Recoveries . | . . . . . . . . . . . Zionite Intel Received 1 | . . . . . . . . 1 . . Branch Access 1 | . . . . . . . . 1 . . Exploration | -11 -10 -9 -8 -7 -7 -7 -6 -6 -5 -4 ------------- Run | Yrd Mat Mat Mat Fac Low Zio Pro Fac Fac Fac Turns Passed 9257 | 64 285 883 772 799 659 2052 650 1955 836 302 Spaces Moved 2861 | 37 134 195 197 230 205 630 198 586 293 156 Core 6 | 6 . . . . . . . . . . Treads 2704 | 31 134 195 197 230 205 630 198 586 217 81 Legs . | . . . . . . . . . . . Wheels 151 | . . . . . . . . . 76 75 Hover . | . . . . . . . . . . . Flight . | . . . . . . . . . . . Fastest Speed 50 | 50 160 320 320 243 323 323 323 323 160 160 Average Speed 293 | 142 186 320 320 301 323 323 323 323 225 164 Slowest Speed 400 | 160 320 320 325 323 323 323 323 323 400 240 Overloaded Moves . | . . . . . . . . . . . Propulsion Burnouts . | . . . . . . . . . . . Robots Hopped . | . . . . . . . . . . . Cave-ins Triggered . | . . . . . . . . . . . Exploration Rate (%) 25 | 4 27 27 25 10 32 85 43 11 9 6 Regions Visited 10 Branch Regions 3 Pre-discovered Areas . | . . . . . . . . . . . Known Exits Taken 1 | . 1 . . . . . . . . . Unknown Exits Taken 9 | 1 . 1 1 1 1 1 1 1 1 . Scrap Searched 5 | . . . . . . 2 3 . . . Spaces Dug . | . . . . . . . . . . . Terrain Destroyed 39 | . . . . . . . . . 33 6 Melee . | . . . . . . . . . . . Projectile . | . . . . . . . . . . . AOE 39 | . . . . . . . . . 33 6 Terrain Rammed . | . . . . . . . . . . . Walls Destroyed . | . . . . . . . . . . . Machines Disabled . | . . . . . . . . . . . Actions | -11 -10 -9 -8 -7 -7 -7 -6 -6 -5 -4 --------- Run | Yrd Mat Mat Mat Fac Low Zio Pro Fac Fac Fac Total 3283 | 46 151 301 259 277 204 645 207 611 385 197 Wait 22 | . . . 1 . . . . . 16 5 Move 2851 | 36 133 194 196 229 204 629 197 585 292 156 Hop . | . . . . . . . . . . . Pick Up 59 | 5 1 19 5 5 . 2 3 5 6 8 Fast Attach 35 | 5 2 5 3 3 . 1 . . 11 5 Attach 38 | . 1 5 7 4 . 2 1 2 14 2 Detach 12 | . . . 1 2 . 2 . . 2 5 Swap 21 | . 2 3 7 2 . 1 1 1 4 . Drop 41 | . 1 3 4 5 . 5 3 4 5 11 Fire 197 | . 11 72 35 27 . 3 2 13 29 5 Melee . | . . . . . . . . . . . Ram . | . . . . . . . . . . . Kick . | . . . . . . . . . . . Crush 3 | . . . . . . . . 1 2 . Escape Stasis . | . . . . . . . . . . . Rewire 4 | . . . . . . . . . 4 . Trap . | . . . . . . . . . . . Miscellaneous . | . . . . . . . . . . . Route ------- -11/Scrapyard -10/Materials (discovered 3 exits: *Mat x3) -9/Materials -8/Materials -7/Factory -7/Lower Caves -7/Zion -6/Proximity Caves -6/Factory (discovered 3 exits: *Fac / Low x2) -5/Factory -4/Factory (discovered 1 exit: *Upp) History --------- Turn | Location | Event 7 | -11/Scrapyard | Discovered new exit (range 15) 65 | -11/Scrapyard | Entered Materials 83 | -10/Materials | Identified exit to Materials 300 | -10/Materials | Build established: Mutant 350 | -10/Materials | Entered another Materials area 350 | -9/Materials | Evolved 2 slots: Utility x1, Weapon x1 651 | -9/Materials | Build established: Skirmisher 1092 | -9/Materials | Discovered new exit (range 3) 1233 | -9/Materials | Entered another Materials area 1233 | -8/Materials | Evolved 2 slots: Utility x2 1534 | -8/Materials | Build established: Tank 1899 | -8/Materials | Discovered new exit (range 12) 1902 | -8/Materials | Found Prototype Device 1916 | -8/Materials | Lost 5 parts (1p1n1u2w) 2005 | -8/Materials | Entered Factory 2005 | -7/Factory | Evolved 2 slots: Propulsion x1, Utility x1 2368 | -7/Factory | Found Prototype Launcher 2453 | -7/Factory | Build established: Scavenger-Gunner 2762 | -7/Factory | Discovered new exit (range 13) 2804 | -7/Factory | Entered Lower Caves 2983 | -7/Lower Caves | Build established: Scavenger-Tank 3458 | -7/Lower Caves | A Derelict revealed a hidden shortcut to a safe place 3463 | -7/Lower Caves | Entered Zion 3942 | -7/Zion | Found Prototype Energy Gun 4007 | -7/Zion | Given A8's code to call for help 4330 | -7/Zion | Found Prototype Special Weapon 4331 | -7/Zion | Identified RU-N14's Throwing Claymores 4719 | -7/Zion | Imprinted 4722 | -7/Zion | Declared Zion's savior 5404 | -7/Zion | Discovered new exit (range 14) 5442 | -7/Zion | Given the Hacking Drone Bay 5443 | -7/Zion | Found Prototype Device 5443 | -7/Zion | Identified Hacking Drone Bay 5515 | -7/Zion | Entered Proximity Caves 5515 | -6/Proximity Caves | Accompanied by 4 allies 5546 | -6/Proximity Caves | Learned 8 Factory zone layouts 6022 | -6/Proximity Caves | Attracted the attention of an 0b10 checkpoint 6091 | -6/Proximity Caves | Learned 4 Factory zone layouts 6143 | -6/Proximity Caves | Discovered new exit (range 8) 6165 | -6/Proximity Caves | Entered Factory 6165 | -6/Factory | Accompanied by 4 allies 6165 | -6/Factory | Evolved 2 slots: Utility x1, Weapon x1 6167 | -6/Factory | Identified Storm Laser 6922 | -6/Factory | Retrieved Zion intel report: Branch Access 6922 | -6/Factory | Identified exit to Lower Caves 6923 | -6/Factory | Zion Hacker squad teleported in 6980 | -6/Factory | Lost 3 allies 7438 | -6/Factory | Terminal network hard line cut 8048 | -6/Factory | Discovered new exit (range 14) 8120 | -6/Factory | Entered another Factory area 8120 | -5/Factory | Evolved 2 slots: Propulsion x1, Utility x1 8537 | -5/Factory | Zion Fire squad teleported in 8540 | -5/Factory | Build established: Tank 8579 | -5/Factory | Garrison activated, responded to threat 8635 | -5/Factory | P-70 Sage assimilated allied PA-94U(i) 8692 | -5/Factory | Lost 3 parts (1n2u) 8720 | -5/Factory | First assault squad dispatched 8792 | -5/Factory | Lost 5 parts (3n2u) 8884 | -5/Factory | Discovered new exit (range 7) 8955 | -5/Factory | Build established: Scavenger-Tank 8956 | -5/Factory | Entered another Factory area 8956 | -4/Factory | Evolved 2 slots: Power x1, Utility x1 8959 | -4/Factory | Identified Active Sensor Suite 9130 | -4/Factory | Discovered new exit (range 16) 9181 | -4/Factory | Identified exit to Upper Caves 9227 | -4/Factory | Zion Thermal Resupply teleported in 9258 | -4/Factory | Self-destructed Last Messages --------------- [ 1 : Thermal Resupply ] [ 2 : Resource Resupply ] [ 3 : Hover Resupply ] [ 4 : Recon ] >>\\ZION-DISPATCH-1 [ Target locked, reinforcements inbound... ] 09232_ Dropped Imp. Medium Laser. 09233_ Dropped Adv. Beam Cannon. 09234_ Acquired Prototype Device. 09234_ Identified Prc. Energy Filter. 09238_ Acquired Dispersion Rifle. 09241_ Dropped Adv. Beam Rifle. 09242_ Acquired Beamcaster. 09247_ Dropped Plasma Cannon. 09247_ Acquired Matter Neutralizer. 09250_ Dropped Imp. Heat Sink. 09251_ Acquired Mak. Laser. 09256_ Dropped Imp. Lightning Gun. 09257_ Acquired Prototype Energy Gun. 09257_ Identified Hvy. Wave Gun. Map ----- +----------------------------------------------------+ | ?????????????????????????????????????????????????? | | ?????????????????????????????????????????????????? | | ?????????????????????????????????????????????????? | | ?????????????????????????????????????????????????? | | ?????????????????????????????????????????????????? | | ?????????????????????????????????????????????????? | | ?????????????????????????????????????????????????? | | ?????????????????????????????????????????????????? | | ?????????????????????????????????????????????????? | | ?????????????????????????????????????????????????? | | ?????????????????????????????????????????????????? | | ?????????????????????????????????????????????????? | | ?????????????????????????????????????????????????? | | ?????????????????????????????????????????????????? | | ?????????????????????????????????????????????????? | | ??????????????????R??????????????????????????????? | | ?????????????????????????????????????????????????? | | ?????????????????????????????????????????????????? | | ???????????????????????k??????????#########??????? | | ??????????????????????????????????# ######## | | ?????????????? ############+####### | | ????????????? = | | ????????????? >%[ | | ????????????? = | | ???????????##+###+#########+####### | | ????????# ! [@# ## ######## | | ????????????""""""""" ][# ##########??# | | ????????# ] ![+ #???????????# | | ?????????? """"""""" [ A# !!!#???????????# | | ????????# # !! #???????????#[ | | ????????????""""""""" # !! #???????????# "" | | ????????????? # ! #???????????# "" | | ??????????????####################???????????##### | | | | | | | | | | | | | | | | | | | | | | | | | | | | | | | | | | | +----------------------------------------------------+ Best States ------------- Heat Dissipation 98 Coolant Potential 80 Energy Generation 34 Energy Capacity 885 Matter Stores 300 Matter Capacity 300 Sight Range 16 Robot Scan Range 20 Terrain Scan Density 10 Jamming Range 12 Armor Coverage 975 Resistance: KI 30 Resistance: TH 10 Resistance: EM 15 Evasion (%) 40 Recoil Reduction 4 Energy Filtering 50 Particle Charging 15 Item Schematics ----------------- Lgt. Angular Momentum Engine | -7/Zion | Archive Microactuators | -7/Zion | Archive Mak. Flight Unit | -7/Zion | Archive Beamcaster | -7/Zion | Archive Disruptor Cannon | -7/Zion | Archive Hvy. Rocket Launcher | -7/Zion | Archive Arm. Leg | -7/Zion | Archive Imp. Cooling System | -7/Zion | Archive Mak. Transmission Jammer | -7/Zion | Archive Gauss Cannon | -7/Zion | Archive Fusion Compressor | -7/Zion | Archive Kinecellerator | -7/Zion | Archive Plasma Flamer | -7/Zion | Archive Imp. Shock Absorption System | -7/Zion | Archive Robot Schematics ------------------ S-27 Virus | -7/Zion | Archive A-02 Transporter | -7/Zion | Archive K-01 Serf | -7/Zion | Archive C-57 Dissector | -7/Zion | Archive Fabricated ------------ Nothing Alien Tech Used ----------------- None Achievements -------------- None Challenges ------------ None Game ------ Seed ChipAntimissileCoupler Manual? 0 Play Time 00:53:57 Cumulative 38.2 hours Start 2024.04.20 @ 17:26:24 End 2024.04.24 @ 17:23:55 Sessions 3 Manual Loads 0 Difficulty Rogue Special Mode None Game No. 53 Rogue 53 Adventurer 0 Explorer 0 Win Type - Total 3 Types 2/0/0/1/0/0/0/0/0 Lore% 23 Gallery% 47 Achievement% 39 Wizard Run 0 Options --------- Layout 0 ASCII 0 Keyboard 0 Movement Numpad Keybinds 0 Fullscreen 2 Font 18/SmallcapsGlow Map View 76x50 Zoom Use 0% Tactical HUD 1 Map Filters NONE Filters NONE Steam 1 RUN: 641e87f3-b1db-4aa2-ba44-917f3f17e9e7